bitfinex/quotes_ETHUSD_20250706
["timestamp","ask_amount","ask_price","bid_price","bid_amount"]
[1751822458067,33.45823126,2548.6,2548.5,0.002]
[1751822460669,33.45782883,2548.6,2548.5,0.002]
[1751822464373,33.09034103,2548.6,2548.5,0.002]
[1751822464574,33.45757996,2548.6,2548.5,0.002]
[1751822465153,26.55248511,2548.6,2548.5,0.002]
[1751822465666,22.62876229,2548.6,2548.5,0.002]
[1751822466170,13.72076229,2548.6,2548.5,0.002]
[1751822466469,21.30852336,2548.6,2548.5,0.002]
[1751822469579,25.23224618,2548.6,2548.5,0.002]
[1751822470180,33.33077262,2548.6,2548.5,0.002]
[1751822470352,32.96364103,2548.6,2548.5,0.002]
[1751822470549,33.33076843,2548.6,2548.5,0.002]
[1751822471180,33.33076134,2548.6,2548.5,0.002]
[1751822471380,33.33075996,2548.6,2548.5,0.002]
[1751822490812,33.88075996,2548.6,2548.5,0.002]
[1751822491594,33.88102332,2548.6,2548.5,0.002]
[1751822494600,33.51364103,2548.6,2548.5,0.002]
[1751822494905,34.24826337,2548.6,2548.5,0.002]
[1751822495311,34.24828669,2548.6,2548.5,0.002]
[1751822495479,42.01828669,2548.6,2548.5,0.002]
[1751822500086,13.92433874,2548.2,2548.1,0.0429677]
[1751822500405,30.75729144,2548.2,2548.1,0.0429677]
[1751822505507,23.85419659,2548.2,2548.1,0.0429677]
[1751822505919,25.79519659,2548.2,2548.1,0.0429677]
[1751822506739,25.4278621,2548.2,2548.1,0.0429677]
[1751822506921,25.79564433,2548.2,2548.1,0.0429677]
[1751822511636,15.90064433,2548.2,2548.1,0.0429677]
[1751822511843,25.79564433,2548.2,2548.1,0.0429677]
[1751822515748,25.4278621,2548.2,2548.1,0.0429677]
[1751822515947,25.79562643,2548.2,2548.1,0.0429677]
[1751822516341,15.90062643,2548.2,2548.1,0.0429677]
[1751822516547,25.79466347,2548.2,2548.1,0.0429677]
[1751822516848,11.97632473,2548.2,2548.1,0.0429677]
[1751822517020,21.67432473,2548.2,2548.1,0.0429677]
[1751822517345,25.59866347,2548.2,2548.1,0.8321677]
[1751822517546,25.59866347,2548.2,2548.1,0.0429677]
[1751822520325,25.79466347,2548.2,2548.1,0.0429677]
[1751822521634,15.90066347,2548.2,2548.1,0.0429677]
[1751822521834,25.79266347,2548.2,2548.1,0.0429677]
[1751822522363,31.31967094,2548.2,2548.1,0.0429677]
[1751822522890,25.79266347,2548.2,2548.1,0.0429677]
[1751822523933,25.4248621,2548.2,2548.1,0.0429677]
[1751822524138,25.79254706,2548.2,2548.1,0.0429677]
[1751822531446,25.79261155,2548.2,2548.1,0.0429677]
[1751822539374,25.79213118,2548.2,2548.1,0.0429677]
[1751822542071,25.42438173,2548.2,2548.1,0.0429677]
[1751822542369,25.79217755,2548.2,2548.1,0.0429677]
[1751822545274,25.79225272,2548.2,2548.1,0.0429677]
[1751822548371,25.79242834,2548.2,2548.1,0.0429677]
[1751822549073,26.60792834,2548.2,2548.1,0.0429677]
[1751822551373,26.6078531,2548.2,2548.1,0.0429677]
[1751822555169,16.7158531,2548.2,2548.1,0.0429677]
[1751822555346,31.31434476,2548.2,2548.1,0.0429677]
[1751822559768,23.36534476,2548.2,2548.1,0.0429677]
[1751822560080,31.31334476,2548.2,2548.1,0.0429677]
[1751822560270,21.86201436,2548.2,2548.1,0.8476677]
[1751822563490,13.71801436,2548.2,2548.1,0.8476677]
[1751822563779,21.66501436,2548.2,2548.1,1.0436677]
[1751822563981,13.71801436,2548.2,2548.1,1.0436677]
[1751822564150,21.66501436,2548.2,2548.1,1.0436677]
[1751822564352,21.66501436,2548.2,2548.1,1.54070572]
[1751822566082,21.66438895,2548.2,2548.1,1.54070572]
[1751822566284,21.66438499,2548.2,2548.1,1.0436677]
[1751822568687,20.252342,2548.2,2548.1,1.0436677]
[1751822568989,21.66293473,2548.2,2548.1,1.0436677]
[1751822569389,10.252342,2548.2,2548.1,1.0436677]
[1751822570163,11.66296318,2548.2,2548.1,1.0436677]
[1751822570568,10.251342,2548.2,2548.1,5.46518817]
[1751822570768,2.305342,2548.2,2548.1,5.46518817]
[1751822571077,10.251342,2548.2,2548.1,5.46518817]
[1751822571271,1.938,2548.2,2548.1,5.46518817]
[1751822571594,9.884,2548.2,2548.1,5.46518817]
[1751822572395,1.938,2548.2,2548.1,5.46518817]
[1751822573576,9.884,2548.2,2548.1,5.46518817]
[1751822574187,1.938,2548.2,2548.1,5.46518817]
[1751822575074,0.001,2548.5,2548.4,3.92403076]
[1751822575274,0.001,2548.5,2548.4,4.73187106]
[1751822575466,0.001,2548.5,2548.4,4.92787106]
[1751822575672,0.001,2548.5,2548.4,11.83580976]
[1751822575870,0.001,2548.5,2548.4,11.79656946]
[1751822576098,0.001,2548.5,2548.4,13.85499455]
[1751822576896,1e-08,2548.5,2548.4,13.85499455]
[1751822578981,1e-08,2548.5,2548.4,21.79899455]
[1751822579192,1e-08,2548.5,2548.4,6.94705585]
[1751822579688,1e-08,2548.5,2548.4,6.98629615]
[1751822583108,0.36731117,2548.6,2548.4,6.98629615]
[1751822583109,1.938,2549.2,2549.1,4.69155319]
[1751822583600,1.938,2549.2,2549.1,4.88755319]
[1751822583802,0.001,2549.5,2549.2,0.7686]
[1751822584116,0.001,2549.5,2549.4,4.11849156]
[1751822587888,0.7807,2549.5,2549.4,0.196]
[1751822588090,17.72789304,2549.5,2549.4,0.196]
[1751822588310,3.92269052,2549.3,2549.0,0.196]
[1751822588497,7.98025434,2549.2,2549.0,0.196]
[1751822588699,1.935,2549.1,2549.0,0.196]
[1751822589313,1.935,2549.1,2549.0,4.1191071]
[1751822589503,10.9767,2549.5,2549.1,3.92295319]
[1751822589504,0.001,2549.5,2549.1,3.92295319]
[1751822589700,0.001,2549.5,2549.4,3.92249156]
[1751822589701,9.877,2549.5,2549.4,3.92249156]
[1751822590012,9.877,2549.5,2549.4,4.11849156]
[1751822591197,1.936,2549.5,2549.4,4.11849156]
[1751822591391,1.936,2549.5,2549.4,4.93499156]
[1751822591585,1.936,2549.5,2549.4,5.82075471]
[1751822592211,0.001,2549.5,2549.4,5.82075471]
[1751822592412,0.001,2549.5,2549.4,5.85997962]
[1751822593502,0.001,2549.5,2549.4,5.82075471]
[1751822594132,0.001,2549.5,2549.4,5.85997962]
[1751822594284,0.001,2549.5,2549.4,5.82075471]
[1751822598223,0.001,2549.5,2549.4,5.85997962]
[1751822600115,0.001,2549.5,2549.4,22.76791832]
[1751822600432,0.001,2549.5,2549.4,23.0218181]
[1751822601308,0.001,2549.5,2549.4,23.5718181]
[1751822601512,1e-08,2549.9,2549.8,4.68397622]
[1751822601712,1e-08,2549.9,2549.8,6.6668054]
[1751822601916,1e-08,2549.9,2549.8,6.8628054]
[1751822603922,1e-08,2549.9,2549.8,14.3207441]
[1751822604126,1e-08,2549.9,2549.8,22.21952534]
[1751822604306,1e-08,2549.9,2549.8,32.21952534]
[1751822604919,1.46777026,2551.2,2550.6,4.47064612]
[1751822605223,0.0629677,2551.2,2550.6,13.09524588]
[1751822605406,0.0629677,2551.2,2550.6,13.05603942]
[1751822605824,0.0629677,2551.2,2550.6,6.14810072]
[1751822606043,0.0629677,2551.2,2551.0,3.92003136]
[1751822606338,0.0629677,2551.2,2551.0,3.95923167]
[1751822606628,0.0629677,2551.2,2551.0,4.74717154]
[1751822607230,0.0629677,2551.2,2551.0,4.70797123]
[1751822607529,0.0629677,2551.2,2551.0,3.92003136]
[1751822607724,0.0629677,2551.2,2551.0,3.95923167]
[1751822608395,0.0629677,2551.2,2551.0,4.77473167]
[1751822610733,1e-08,2551.2,2551.1,3.91987769]
[1751822611037,1e-08,2551.7,2551.6,3.91910957]
[1751822611266,0.02,2552.6,2551.9,5.2302283]
[1751822611407,0.02,2552.6,2552.4,3.9178812]
[1751822611610,0.02,2552.6,2552.4,4.71866001]
[1751822611908,0.02,2552.6,2552.4,6.82312166]
[1751822612139,1e-08,2552.5,2552.4,6.82312166]
[1751822612353,1e-08,2552.6,2552.5,3.91772771]
[1751822612720,1e-08,2552.6,2552.5,11.90272771]
[1751822614311,0.0429677,2553.2,2553.1,3.91680701]
[1751822614504,0.0429677,2553.2,2553.1,3.95597508]
[1751822614805,0.0429677,2553.2,2553.1,4.15117508]
[1751822615355,0.0429677,2553.2,2553.1,4.11200701]
[1751822616142,0.86615434,2553.6,2553.2,3.91660819]
[1751822616442,0.86615434,2553.6,2553.4,0.1952]
[1751822616443,0.87758494,2553.6,2553.4,0.1952]
[1751822616629,0.8383306,2553.6,2553.5,3.91619345]
[1751822617154,0.8269,2553.6,2553.5,3.91619345]
[1751822617551,0.8269,2553.6,2553.4,4.11147139]
[1751822618449,0.02,2553.7,2553.6,3.9160401]
[1751822618822,0.02,2553.7,2553.6,4.1112401]
[1751822619846,0.02,2553.7,2553.6,4.91398345]
[1751822622153,0.02,2553.7,2553.6,4.95314385]
[1751822624152,0.0801003,2553.9,2553.8,3.91573341]
[1751822624451,0.0801003,2553.9,2553.8,4.15009074]
[1751822625134,0.0801003,2553.9,2553.8,4.11093341]
[1751822625330,0.0801003,2553.9,2553.8,6.30360896]
[1751822625525,0.0801003,2553.9,2553.8,6.26445163]
[1751822625750,0.0801003,2553.9,2553.8,6.30360896]
[1751822630657,0.8984003,2553.9,2553.8,4.11093341]
[1751822631249,0.8984003,2553.9,2553.8,4.15009074]
[1751822631847,0.8994003,2553.9,2553.8,4.15009074]
[1751822635366,0.8994003,2553.9,2553.8,4.11093341]
[1751822637066,10.90461909,2553.9,2553.4,3.91626521]
[1751822637269,2.74285434,2553.8,2553.6,0.1952]
[1751822637565,4.68848675,2553.7,2553.6,0.1952]
[1751822638462,6.08563038,2553.7,2553.6,0.1952]
[1751822638835,6.12488472,2553.7,2553.1,3.91673478]
[1751822639059,6.12488472,2553.7,2553.4,0.1952]
[1751822639262,4.12458402,2553.7,2553.4,0.1952]
[1751822639452,1.39714363,2553.6,2553.4,0.1952]
[1751822639650,1.43639797,2553.5,2553.4,0.1952]
[1751822639972,0.03925434,2553.5,2553.4,0.1952]
[1751822640272,9.40739797,2553.5,2553.4,0.1952]
[1751822640461,9.37957423,2553.5,2553.4,0.1952]
[1751822641341,7.9824306,2553.5,2553.4,0.1952]
[1751822641543,9.38353314,2553.5,2553.4,0.1952]
[1751822644475,14.08392659,2553.5,2553.3,0.1952]
[1751822644670,1.44035688,2553.4,2553.3,0.1952]
[1751822644971,1.44035688,2553.4,2553.1,0.1952]
[1751822645147,1.40110254,2553.3,2553.1,0.1952]
[1751822645348,1.44035688,2553.2,2553.1,0.1952]
[1751822646571,0.8032,2553.1,2552.7,3.91740505]
[1751822646741,1.44035688,2553.0,2552.8,4.11246261]
[1751822646945,1.40110254,2552.9,2552.8,4.11246261]
[1751822647143,1.40110254,2552.9,2552.8,4.91545037]
[1751822647674,1.40110254,2552.9,2552.8,0.99818776]
[1751822647872,1.40110254,2552.9,2552.8,0.1952]
[1751822649470,1.40110254,2552.9,2552.8,4.11246731]
[1751822650377,0.03925434,2553.0,2552.8,4.11246731]
[1751822651278,0.03925434,2553.0,2552.8,0.1952]
[1751822651777,1.44303219,2553.0,2552.8,4.11238976]
[1751822653277,0.03925434,2553.0,2552.8,4.11238976]
[1751822653772,0.03925434,2553.0,2552.8,0.1952]
[1751822654669,0.03925434,2553.0,2552.8,4.11245949]
[1751822654870,0.03925434,2553.0,2552.8,0.1972]
[1751822655482,0.03925434,2553.0,2552.8,4.11444682]
[1751822655979,0.03925434,2553.0,2552.8,0.1972]
[1751822657783,3.95622607,2553.0,2552.8,0.1972]
[1751822658093,3.95622607,2553.0,2552.8,0.002]
[1751822658300,0.03925434,2553.0,2552.8,0.002]
[1751822661283,0.0114306,2553.1,2553.0,3.91696043]
[1751822662791,0.0114306,2553.1,2552.9,4.11223602]
[1751822663087,0.0114306,2553.1,2552.9,0.1952]
[1751822663290,0.7546,2553.0,2552.9,0.1952]
[1751822663664,0.79385434,2553.0,2552.9,0.1952]
[1751822664798,4.71081566,2553.0,2552.8,0.002]
[1751822665012,20.82505257,2552.9,2552.8,0.002]
[1751822665170,22.98598748,2552.9,2552.8,0.002]
[1751822665360,23.18118748,2552.9,2552.8,0.002]
[1751822667073,31.14318748,2552.9,2552.8,0.002]
[1751822668801,26.18624878,2552.9,2552.8,0.002]
[1751822670290,1.60153491,2552.9,2552.8,0.002]
[1751822670491,9.906,2552.9,2552.8,0.002]
[1751822674508,13.82311387,2552.9,2552.8,0.002]
[1751822675210,15.23003814,2552.9,2552.8,0.002]
[1751822676210,22.94417684,2552.9,2552.8,0.002]
[1751822694550,16.03623814,2552.9,2552.8,0.002]
[1751822695039,15.21203814,2552.9,2552.8,0.002]
[1751822695243,11.29492427,2552.9,2552.8,0.002]
[1751822696747,3.35292427,2552.9,2552.8,0.002]
[1751822696941,11.29492427,2552.9,2552.8,0.002]
[1751822700425,15.21203814,2552.9,2552.8,0.002]
[1751822700629,15.96463814,2552.9,2552.8,0.002]
[1751822710263,1.40692427,2552.9,2552.8,0.002]
[1751822710436,7.937,2552.9,2552.8,0.002]
[1751822710772,9.34392427,2552.9,2552.8,0.002]
[1751822711551,10.13432427,2552.9,2552.8,0.002]
[1751822713176,9.34392427,2552.9,2552.8,0.002]
[1751822713334,1.40692427,2552.9,2552.8,0.002]
[1751822713674,9.34492427,2552.9,2552.8,4.39379643]
[1751822714170,9.34862962,2552.9,2552.8,4.39379643]
[1751822714370,9.34862962,2552.9,2552.8,3.91926731]
[1751822714761,1.41062962,2552.9,2552.8,3.91926731]
[1751822714937,1.41062962,2553.1,2553.0,4.74296043]
[1751822715139,9.9269677,2553.2,2553.1,3.91680701]
[1751822715470,11.33759732,2553.2,2553.1,3.91680701]
[1751822716245,9.9269677,2553.2,2553.1,3.91680701]
[1751822716860,9.9259677,2553.2,2553.1,3.91680701]
[1751822717374,9.9259677,2553.2,2553.1,4.78278375]
[1751822720376,9.9259677,2553.2,2553.1,4.97798375]
[1751822720948,1.9789677,2553.2,2553.1,4.97798375]
[1751822721183,9.9219677,2553.2,2553.1,4.97798375]
[1751822721687,1.9789677,2553.2,2553.1,4.97798375]
[1751822721873,9.9209677,2553.2,2553.1,4.97798375]
[1751822723679,1.9789677,2553.2,2553.1,4.97798375]
[1751822725684,1.9789677,2553.2,2553.1,4.11200701]
[1751822726893,1.9789677,2553.2,2553.1,4.11200701]
[1751822730670,0.0429677,2553.2,2553.1,4.11200701]
[1751822731515,19.18656476,2553.2,2552.9,0.01576457]
[1751822731804,9.36048844,2553.1,2552.9,0.01576457]
[1751822731978,0.03925434,2553.0,2552.9,0.01576457]
[1751822732709,3.95621477,2553.0,2552.9,0.01576457]
[1751822734462,13.06105201,2553.0,2552.9,0.01576457]
[1751822734777,13.02179767,2553.0,2552.9,0.01576457]
[1751822736194,23.02179767,2553.0,2552.9,0.01576457]
[1751822737997,23.37131858,2553.0,2552.9,0.01576457]
[1751822738292,16.46337988,2553.0,2552.9,0.01576457]
[1751822738496,16.11385897,2553.0,2552.9,0.01576457]
[1751822740915,1.40689854,2553.0,2552.9,4.74947844]
[1751822741063,1.40689854,2553.0,2552.9,5.22462628]
[1751822741064,7.972,2553.0,2552.9,5.22462628]
[1751822741588,7.972,2553.0,2552.9,5.41982628]
[1751822742868,7.972,2553.0,2552.9,5.42182628]
[1751822743611,0.0429677,2553.2,2553.1,3.91680701]
[1751822743810,8.0129677,2553.2,2553.1,3.91680701]
[1751822744016,8.0129677,2553.2,2553.1,4.11200701]
[1751822744512,8.0129677,2553.2,2553.1,0.1952]
[1751822745086,8.8223677,2553.2,2553.1,0.1952]
[1751822745290,8.8223677,2553.2,2553.0,0.1952]
[1751822745820,0.03925434,2553.1,2553.0,0.1952]
[1751822746795,3.91696043,2553.0,2552.9,0.01776457]
[1751822747001,11.88496043,2553.0,2552.9,0.01776457]
[1751822748399,21.88496043,2553.0,2552.9,0.01776457]
[1751822748605,23.29241357,2553.0,2552.9,0.01776457]
[1751822749199,11.30945314,2553.0,2552.9,0.01776457]
[1751822749403,9.902,2553.0,2552.9,0.21296457]
[1751822751771,9.902,2553.0,2552.9,4.13007844]
[1751822751972,0.0429677,2553.2,2552.9,4.13007844]
[1751822752176,1.935,2553.0,2552.9,3.97404957]
[1751822752393,0.0429677,2553.2,2553.1,3.91680701]
[1751822752592,1.9779677,2553.2,2553.1,3.91680701]
[1751822752792,9.9539677,2553.2,2553.1,0.1952]
[1751822755302,9.9539677,2553.2,2553.1,4.11200701]
[1751822755995,0.0429677,2553.2,2553.1,4.11200701]
[1751822756217,8.0149677,2553.2,2553.1,4.11200701]
[1751822757105,0.0429677,2553.2,2553.1,4.11200701]
[1751822757410,8.0149677,2553.2,2553.1,4.11200701]
[1751822757995,8.0149677,2553.2,2553.1,0.1952]
[1751822759326,10.23551014,2553.2,2553.1,0.1952]
[1751822761621,14.15216375,2553.2,2553.1,0.1952]
[1751822761792,3.91683763,2553.1,2552.9,0.01776457]
[1751822761991,3.95609197,2553.1,2553.0,0.1952]
[1751822762218,11.92409197,2553.1,2553.0,0.1952]
[1751822762387,11.88483763,2553.1,2553.0,0.1952]
[1751822763414,7.968,2553.1,2553.0,0.1952]
[1751822764801,7.968,2553.1,2553.0,0.1972]
[1751822765402,11.88480701,2553.1,2553.0,0.1972]
[1751822766926,21.88480701,2553.1,2553.0,0.002]
[1751822767124,24.04470126,2553.1,2553.0,0.002]
[1751822767336,25.99170126,2553.1,2553.0,0.002]
[1751822767800,26.34593593,2553.1,2553.0,0.002]
[1751822768313,25.99170126,2553.1,2553.0,0.002]
[1751822768639,12.5142171,2553.1,2553.0,0.002]
[1751822768799,26.34602411,2553.1,2553.0,0.002]
[1751822771728,12.5142171,2553.1,2553.0,0.002]
[1751822771934,22.4262171,2553.1,2553.0,0.002]
[1751822772120,21.6752171,2553.1,2553.0,0.002]
[1751822772729,21.67657289,2553.1,2553.0,0.002]
[1751822772901,21.676573,2553.1,2553.0,0.002]
[1751822773102,1.765573,2553.1,2553.0,0.002]
[1751822773435,7.971,2553.1,2553.0,4.11416043]
[1751822773604,7.971,2553.1,2553.0,4.99949623]
[1751822773804,7.971,2553.1,2553.0,1.0825358]
[1751822774011,7.971,2553.1,2553.0,0.1972]
[1751822775132,7.971,2553.1,2553.0,4.11416043]
[1751822775332,7.971,2553.1,2553.0,0.1972]
[1751822775534,7.971,2553.1,2553.0,4.11416043]
[1751822775912,7.971,2553.1,2553.0,0.1972]
[1751822776235,7.971,2553.1,2553.0,4.11416043]
[1751822777135,7.971,2553.1,2553.0,0.1972]
[1751822778538,7.971,2553.1,2553.0,4.11416043]
[1751822779233,7.971,2553.1,2553.0,0.1972]
[1751822779839,7.971,2553.1,2553.0,4.11416043]
[1751822783144,7.971,2553.1,2553.0,0.1972]
[1751822783810,7.971,2553.1,2553.0,4.11416043]
[1751822785440,0.0429677,2553.2,2553.1,3.91680701]
[1751822785659,0.0429677,2553.2,2553.1,3.95597508]
[1751822785845,8.0009677,2553.2,2553.1,3.91680701]
[1751822786444,8.0099677,2553.2,2553.1,3.91680701]
[1751822787923,0.0439677,2553.7,2553.6,4.7018401]
[1751822788123,0.39755909,2553.7,2553.6,5.56364119]
[1751822788437,0.0439677,2553.7,2553.6,5.56364119]
[1751822790337,0.0439677,2553.7,2553.6,5.60280159]
[1751822791840,0.0439677,2553.7,2553.6,7.00280159]
[1751822795118,0.0439677,2553.7,2553.6,5.60280159]
[1751822797951,0.0439677,2553.7,2553.6,5.79800159]
[1751822799665,0.0439677,2553.7,2553.6,5.01220159]
[1751822800322,0.0439677,2553.7,2553.6,4.97304119]
[1751822801258,0.0439677,2553.7,2553.6,5.01220159]
[1751822801439,0.0439677,2553.7,2553.6,5.80100159]
[1751822802862,0.0439677,2553.7,2553.6,7.20100159]
[1751822806656,0.0439677,2553.7,2553.6,6.37304119]
[1751822806857,0.0439677,2553.7,2553.6,4.1112401]
[1751822809870,0.0439677,2553.7,2553.6,4.1504005]
[1751822813278,0.0439677,2553.7,2553.6,5.5504005]
[1751822822371,0.0439677,2553.7,2553.6,4.1504005]
[1751822829394,0.0439677,2553.7,2553.6,0.2343604]
[1751822829607,10.7191677,2553.7,2553.6,0.1952]
[1751822831102,12.12978907,2553.7,2553.6,0.1952]
[1751822831468,10.7191677,2553.7,2553.6,0.1952]
[1751822832699,0.7788,2553.5,2553.1,0.002]
[1751822832876,0.36709183,2553.4,2553.1,0.002]
[1751822833214,10.26309183,2553.4,2553.1,0.002]
[1751822833394,9.896,2553.4,2553.1,0.002]
[1751822833701,13.81237362,2553.4,2553.1,0.002]
[1751822833872,0.7788,2553.3,2553.1,0.002]
[1751822835173,0.0439677,2553.7,2553.1,0.002]
[1751822835377,9.904,2553.6,2553.2,3.9165569]
[1751822835603,9.904,2553.6,2553.2,0.86858805]
[1751822835786,9.904,2553.6,2553.1,0.04116807]
[1751822836103,9.904,2553.6,2553.3,3.91649804]
[1751822836703,0.0439677,2553.7,2553.2,0.03916653]
[1751822836908,9.909,2553.6,2553.5,3.91619345]
[1751822838005,9.909,2553.6,2553.2,3.91665361]
[1751822838229,9.909,2553.6,2553.3,0.039165]
[1751822838376,9.909,2553.6,2553.4,3.91633936]
[1751822838569,0.0439677,2553.7,2553.6,3.9160401]
[1751822841594,8.0119677,2553.7,2553.6,3.9160401]
[1751822842725,8.0119677,2553.7,2553.6,4.1112401]
[1751822848251,8.8014677,2553.7,2553.6,0.1952]
[1751822849915,19.62529315,2553.7,2553.6,0.1952]
[1751822850097,19.99175012,2553.7,2553.5,0.1952]
[1751822850304,3.95529444,2553.6,2553.5,0.1952]
[1751822850830,0.40570795,2553.6,2553.5,0.1952]
[1751822851028,5.11124805,2553.6,2553.5,0.1952]
[1751822851302,3.91621694,2553.5,2553.1,0.002]
[1751822851519,7.962,2553.4,2553.3,0.1952]
[1751822855141,16.90390055,2553.4,2553.3,0.1952]
[1751822855329,20.36243093,2553.4,2553.3,0.1952]
[1751822855707,21.76989199,2553.4,2553.3,0.1952]
[1751822857127,25.68623882,2553.4,2553.3,0.1952]
[1751822857741,21.76989199,2553.4,2553.3,0.1952]
[1751822857905,25.68623882,2553.4,2553.3,0.1952]
[1751822858256,0.0439677,2553.7,2553.4,1.3588]
[1751822858412,0.0439677,2553.7,2553.6,3.9160401]
[1751822859937,0.0439677,2553.7,2553.6,3.9552005]
[1751822863840,0.0439677,2553.7,2553.6,3.9160401]
[1751822865443,0.0439677,2553.7,2553.6,3.9552005]
[1751822865648,0.0439677,2553.7,2553.6,4.8390595]
[1751822868351,0.0439677,2553.7,2553.6,5.0734199]
[1751822880037,0.0439677,2553.7,2553.6,5.8555199]
[1751822887970,1e-08,2553.7,2553.6,23.3134586]
[1751822888147,1e-08,2553.7,2553.6,23.2742982]
[1751822890272,1e-08,2553.7,2553.6,23.4678178]
[1751822890466,1e-08,2553.7,2553.6,23.2742982]
[1751822893074,0.9858,2554.9,2553.9,3.91558009]
[1751822893375,0.9858,2554.9,2554.6,3.91450716]
[1751822893376,0.7906,2554.9,2554.6,3.91450716]
[1751822893544,0.7906,2554.9,2554.6,3.95365223]
[1751822893746,0.7906,2554.9,2554.6,4.14885223]
[1751822894142,0.25,2555.0,2554.6,4.14885223]
[1751822896345,0.25,2555.0,2554.6,4.10970716]
[1751822896675,0.25,2555.0,2554.6,5.01680395]
[1751822898179,0.25,2555.0,2554.6,5.05594902]
[1751822901446,0.25,2555.0,2554.6,5.01680395]
[1751822902576,15.7369064,2554.7,2554.6,0.1952]
[1751822902780,19.65126033,2554.7,2554.6,0.1952]
[1751822903458,0.799,2554.5,2554.1,0.03915273]
[1751822903659,1.953,2554.4,2554.1,3.95441757]
[1751822903859,1.953,2554.4,2554.3,0.1952]
[1751822905794,0.0429677,2554.7,2554.6,3.91450716]
[1751822905987,0.0429677,2554.7,2554.6,3.95365223]
[1751822906153,0.0429677,2554.7,2554.6,4.14885223]
[1751822911495,0.0429677,2554.7,2554.6,4.10970716]
[1751822913265,0.0429677,2554.7,2554.6,4.91214392]
[1751822916503,0.8687677,2554.7,2554.6,4.91214392]
[1751822917058,0.0429677,2554.7,2554.6,4.91214392]
[1751822918289,0.0439677,2554.7,2554.6,4.91214392]
[1751822922290,0.0439677,2554.7,2554.6,4.10970716]
[1751822924291,0.0439677,2554.7,2554.6,0.1952]
[1751822924865,0.0439677,2554.7,2554.6,4.10970716]
[1751822930200,0.0439677,2554.7,2554.6,0.1952]
[1751822930399,0.8296677,2554.7,2554.6,0.1952]
[1751822932606,1.44884332,2554.7,2554.6,0.1952]
[1751822932805,5.40245159,2554.7,2554.1,0.002]
[1751822933009,5.40245159,2554.7,2554.5,0.1952]
[1751822933010,8.792,2554.6,2554.5,0.1952]
[1751822937786,19.61444586,2554.6,2554.5,0.1952]
[1751822937986,21.43448414,2554.6,2554.5,0.1952]
[1751822938526,14.52654544,2554.6,2554.5,0.1952]
[1751822938812,10.61203828,2554.6,2554.5,0.1952]
[1751822945017,8.792,2554.6,2554.5,0.1952]
[1751822947926,0.0439677,2554.7,2554.5,0.1952]
[1751822948100,8.0119677,2554.7,2554.6,0.1952]
[1751822950123,0.0439677,2554.7,2554.6,4.88060716]
[1751822950425,0.0439677,2554.7,2554.6,5.76404637]
[1751822950593,0.0439677,2554.7,2554.6,5.80319144]
[1751822957150,0.0439677,2554.7,2554.6,6.35319144]
[1751822957364,0.0429677,2555.3,2555.2,4.46358797]
[1751822957514,0.0429677,2555.3,2555.2,5.68774677]
[1751822957855,0.0429677,2555.3,2555.2,5.88294677]
[1751822958867,0.0429677,2555.3,2555.2,6.18253418]
[1751822961270,0.0429677,2555.3,2555.2,5.33294677]
[1751822961960,0.0429677,2555.3,2555.2,5.37208264]
[1751822962552,0.0439677,2555.3,2555.2,5.37208264]
[1751822964675,0.0439677,2555.3,2555.2,5.33294677]
[1751822965943,0.0439677,2555.3,2555.2,4.55514677]
[1751822966161,0.0439677,2555.3,2555.2,4.59428264]
[1751822966345,0.0439677,2555.3,2555.2,4.14792384]
[1751822968580,0.0439677,2555.3,2555.2,4.10878797]
[1751822971952,0.0439677,2555.3,2555.2,4.14792384]
[1751822972151,0.0439677,2555.3,2555.2,4.10878797]
[1751822974191,0.8682677,2555.3,2555.2,0.1952]
[1751822974394,0.8682677,2555.3,2555.2,4.10878797]
[1751822977098,0.0439677,2555.3,2555.2,4.10878797]
[1751822979177,0.8656677,2555.3,2555.2,4.10878797]
[1751822979374,0.8656677,2555.3,2555.2,0.1952]
[1751822985175,4.77910252,2555.3,2555.2,0.1952]
[1751822985808,4.81835686,2555.3,2555.2,0.1952]
[1751822987711,3.91372507,2555.2,2555.1,0.1952]
[1751822987876,11.87972507,2555.2,2555.1,0.1952]
[1751822997442,3.91421463,2554.8,2554.6,0.002]
[1751822997640,9.94925434,2554.7,2554.6,0.002]
[1751822997807,9.91,2554.7,2554.6,0.002]
[1751822998007,9.91,2554.7,2554.6,0.1972]
[1751823000033,13.82435393,2554.7,2554.6,0.1972]
[1751823006810,9.91,2554.7,2554.6,0.1972]
[1751823007016,13.82435393,2554.7,2554.6,0.1972]
[1751823008015,13.82335393,2554.7,2554.6,0.1972]
[1751823009547,0.7895,2555.1,2554.6,0.1972]
[1751823009859,1.945,2554.9,2554.6,4.11165976]
[1751823010066,7.957,2554.8,2554.6,4.40998574]
[1751823010512,7.957,2554.8,2554.7,0.1952]
[1751823012210,12.67330072,2554.8,2554.7,0.1952]
[1751823012720,13.03958583,2554.8,2554.7,0.1952]
[1751823013832,9.12538511,2554.8,2554.7,0.1952]
[1751823014645,13.03958583,2554.8,2554.7,0.1952]
[1751823015833,9.12538511,2554.8,2554.7,0.1952]
[1751823016220,8.7591,2554.8,2554.7,0.1952]
[1751823017043,7.957,2554.8,2554.7,0.1952]
[1751823018125,9.901,2554.8,2554.7,0.1952]
[1751823019363,10.26749457,2554.8,2554.7,0.1952]
[1751823020417,10.26753952,2554.8,2554.7,0.1952]
[1751823023422,11.67563505,2554.8,2554.7,0.1952]
[1751823023922,15.58983577,2554.8,2554.7,0.1952]
[1751823024750,11.67563505,2554.8,2554.7,0.1952]
[1751823025865,15.58983577,2554.8,2554.7,0.1952]
[1751823026022,11.67563505,2554.8,2554.7,0.1952]
[1751823026773,15.58983577,2554.8,2554.7,0.1952]
[1751823026924,11.67563505,2554.8,2554.7,0.1952]
[1751823028663,11.67613932,2554.8,2554.7,0.1952]
[1751823029149,15.59034004,2554.8,2554.7,0.1952]
[1751823030253,11.67613932,2554.8,2554.7,0.1952]
[1751823030452,11.67713932,2554.8,2554.7,0.1952]
[1751823031877,11.67718094,2554.8,2554.7,0.1952]
[1751823034529,15.59138166,2554.8,2554.7,0.1952]
[1751823034725,15.59138999,2554.8,2554.7,0.1952]
[1751823038047,11.67718927,2554.8,2554.7,0.1952]
[1751823040259,15.59138999,2554.8,2554.7,0.1952]